[Event "Early-Titled-Tuesday-Blitz-January-30-2024"]
[Site "Chess.com"]
[Date "2024.01.30"]
[Round "4"]
[White "rasmussvane"]
[Black "DonkyDonkyDonkey"]
[Result "1-0"]
[WhiteElo "2974"]
[BlackElo "2744"]
[TimeControl "180+1"]
[EndTime "8:42:51 PST"]
[Termination "rasmussvane won by resignation"]

1. Nf3 {[%clk 0:02:59]} 1... d5 {[%clk 0:03:00.1]} 2. g3 {[%clk 0:02:58.5]} 2...
Nc6 {[%clk 0:03:00.1]} 3. d4 {[%clk 0:02:58.4]} 3... Bf5 {[%clk 0:03:00.4]} 4.
Bg2 {[%clk 0:02:58]} 4... Nb4 {[%clk 0:03:00.8]} 5. Na3 {[%clk 0:02:56.7]} 5...
e6 {[%clk 0:03:01.4]} 6. O-O {[%clk 0:02:54.8]} 6... Nc6 {[%clk 0:03:02.1]} 7.
Nb1 {[%clk 0:02:54.2]} 7... Nb4 {[%clk 0:03:02.4]} 8. Ne1 {[%clk 0:02:50.2]}
8... h6 {[%clk 0:02:59.6]} 9. c3 {[%clk 0:02:47.6]} 9... Nc6 {[%clk 0:02:59.6]}
10. Nd3 {[%clk 0:02:37]} 10... Nf6 {[%clk 0:02:59.7]} 11. Nd2 {[%clk 0:02:36.4]}
11... Bd6 {[%clk 0:02:56.7]} 12. Re1 {[%clk 0:02:36.6]} 12... Bxd3 {[%clk
0:02:50.9]} 13. exd3 {[%clk 0:02:34.5]} 13... O-O {[%clk 0:02:51.7]} 14. Nf3
{[%clk 0:02:34.7]} 14... Nd7 {[%clk 0:02:52.3]} 15. Bd2 {[%clk 0:02:23.3]} 15...
Rb8 {[%clk 0:02:45.8]} 16. a4 {[%clk 0:02:22.4]} 16... a6 {[%clk 0:02:32.5]} 17.
a5 {[%clk 0:02:20.7]} 17... e5 {[%clk 0:02:19.9]} 18. dxe5 {[%clk 0:02:14]}
18... Ncxe5 {[%clk 0:02:20.8]} 19. Nxe5 {[%clk 0:02:11.2]} 19... Nxe5 {[%clk
0:02:21.7]} 20. Bf4 {[%clk 0:01:59.2]} 20... Ng6 {[%clk 0:02:16.4]} 21. Be3
{[%clk 0:01:59.2]} 21... c6 {[%clk 0:02:11]} 22. Qh5 {[%clk 0:01:41.6]} 22...
Ne5 {[%clk 0:02:05.5]} 23. Bb6 {[%clk 0:01:34.3]} 23... Qg5 {[%clk 0:01:56.5]}
24. Qe2 {[%clk 0:01:15.8]} 24... Qg6 {[%clk 0:01:46.4]} 25. Rad1 {[%clk
0:01:15]} 25... Nd7 {[%clk 0:01:37.6]} 26. Ba7 {[%clk 0:01:11.6]} 26... Ra8
{[%clk 0:01:35.9]} 27. Bd4 {[%clk 0:01:11]} 27... Bc5 {[%clk 0:01:33.5]} 28. Qe3
{[%clk 0:00:49.9]} 28... Bxd4 {[%clk 0:01:32.9]} 29. Qxd4 {[%clk 0:00:50.8]}
29... Qf6 {[%clk 0:01:23.8]} 30. Qb4 {[%clk 0:00:49.1]} 30... Rab8 {[%clk
0:01:20.1]} 31. Re3 {[%clk 0:00:46.2]} 31... Rfd8 {[%clk 0:01:12.9]} 32. Rde1
{[%clk 0:00:45.7]} 32... Nf8 {[%clk 0:01:12.6]} 33. Bh3 {[%clk 0:00:43.9]} 33...
Ng6 {[%clk 0:01:11.6]} 34. Kg2 {[%clk 0:00:42.8]} 34... d4 {[%clk 0:01:08.2]}
35. Rf3 {[%clk 0:00:41.8]} 35... Qg5 {[%clk 0:01:07.3]} 36. Re4 {[%clk
0:00:32.9]} 36... dxc3 {[%clk 0:01:00.9]} 37. bxc3 {[%clk 0:00:32]} 37... Rd5
{[%clk 0:01:00.9]} 38. Rg4 {[%clk 0:00:27.2]} 38... Qe7 {[%clk 0:00:53.7]} 39.
Qxe7 {[%clk 0:00:20.6]} 39... Nxe7 {[%clk 0:00:54.6]} 40. Re4 {[%clk 0:00:21.1]}
40... Ng6 {[%clk 0:00:54.5]} 41. Rf5 {[%clk 0:00:13]} 41... Rbd8 {[%clk
0:00:52.5]} 42. Rxd5 {[%clk 0:00:12.3]} 42... Rxd5 {[%clk 0:00:53.4]} 43. Re8+
{[%clk 0:00:12.4]} 43... Kh7 {[%clk 0:00:52.8]} 44. Rb8 {[%clk 0:00:12.5]} 44...
Rxa5 {[%clk 0:00:52]} 45. Rxb7 {[%clk 0:00:13]} 45... f5 {[%clk 0:00:38.4]} 46.
Rf7 {[%clk 0:00:09.8]} 46... Kg8 {[%clk 0:00:23.7]} 47. Rxf5 {[%clk 0:00:10.1]}
47... Ra3 {[%clk 0:00:24.2]} 48. Rc5 {[%clk 0:00:10.2]} 48... Ne7 {[%clk
0:00:24.8]} 49. Bd7 {[%clk 0:00:07.9]} 49... Kf7 {[%clk 0:00:22.7]} 50. Bxc6
{[%clk 0:00:08.3]} 50... Ke6 {[%clk 0:00:23.4]} 51. Be4 {[%clk 0:00:06.9]} 51...
Kd6 {[%clk 0:00:23.9]} 52. Rc4 {[%clk 0:00:06.7]} 52... a5 {[%clk 0:00:24.5]}
53. Kf3 {[%clk 0:00:06.2]} 53... Ng8 {[%clk 0:00:22.4]} 54. Ke3 {[%clk
0:00:06.3]} 54... Nf6 {[%clk 0:00:23]} 55. Kd4 {[%clk 0:00:07]} 55... Ra2 {[%clk
0:00:20.8]} 56. Rc6+ {[%clk 0:00:07.4]} 56... Kd7 {[%clk 0:00:21.3]} 57. Ra6
{[%clk 0:00:08.3]} 57... Rxf2 {[%clk 0:00:21.2]} 58. Rxa5 {[%clk 0:00:07.7]}
58... Rxh2 {[%clk 0:00:21.9]} 59. Ra7+ {[%clk 0:00:08.1]} 59... Kd6 {[%clk
0:00:22.2]} 60. Rxg7 {[%clk 0:00:09]} 60... Rh3 {[%clk 0:00:21.2]} 61. Rg6
{[%clk 0:00:09]} 61... Ke7 {[%clk 0:00:21.9]} 62. c4 {[%clk 0:00:08.8]} 62...
Rh2 {[%clk 0:00:19.6]} 63. Rg7+ {[%clk 0:00:08.3]} 63... Kf8 {[%clk 0:00:19.7]}
64. Rb7 {[%clk 0:00:07]} 64... Rc2 {[%clk 0:00:19.5]} 65. c5 {[%clk 0:00:07.4]}
65... Ke8 {[%clk 0:00:19.2]} 66. Rg7 {[%clk 0:00:06.9]} 66... Kd8 {[%clk
0:00:19]} 67. Rg6 {[%clk 0:00:07.3]} 67... Nd7 {[%clk 0:00:18.7]} 68. c6 {[%clk
0:00:07.2]} 68... Nb6 {[%clk 0:00:18.7]} 69. Rxh6 {[%clk 0:00:07.5]} 69... Kc7
{[%clk 0:00:19.5]} 70. g4 {[%clk 0:00:07.6]} 70... Nc8 {[%clk 0:00:18.3]} 71. g5
{[%clk 0:00:08]} 71... Rc1 {[%clk 0:00:18.2]} 72. Rh7+ {[%clk 0:00:08.1]} 72...
Kb6 {[%clk 0:00:17.7]} 73. Rb7+ {[%clk 0:00:08.1]} 73... Ka6 {[%clk 0:00:17.6]}
74. g6 {[%clk 0:00:09]} 74... Rg1 {[%clk 0:00:17.3]} 75. Rb8 {[%clk 0:00:09.4]}
75... Ne7 {[%clk 0:00:16.5]} 76. c7 {[%clk 0:00:09.1]} 76... Rc1 {[%clk
0:00:15.9]} 77. c8=Q+ {[%clk 0:00:06.7]} 77... Nxc8 {[%clk 0:00:13.2]} 78. Bb7+
{[%clk 0:00:06.5]} 78... Ka7 {[%clk 0:00:13.7]} 79. Rxc8 {[%clk 0:00:07.4]}
79... Rg1 {[%clk 0:00:13]} 80. Be4 {[%clk 0:00:07.8]} 80... Rb1 {[%clk
0:00:09.2]} 81. g7 {[%clk 0:00:07.5]} 81... Rb4+ {[%clk 0:00:09.8]} 82. Ke3
{[%clk 0:00:07.8]} 82... Rb8 {[%clk 0:00:02.6]} 83. Rxb8 {[%clk 0:00:07.1]} 1-0

[Event "Early-Titled-Tuesday-Blitz-January-30-2024"]
[Site "Chess.com"]
[Date "2024.01.30"]
[Round "4"]
[White "chess123456s"]
[Black "Abund"]
[Result "1-0"]
[WhiteElo "2575"]
[BlackElo "2746"]
[TimeControl "180+1"]
[EndTime "8:42:56 PST"]
[Termination "chess123456s won on time"]

1. e4 {[%clk 0:03:00.9]} 1... e5 {[%clk 0:02:59.3]} 2. Nf3 {[%clk 0:03:01]} 2...
Nc6 {[%clk 0:03:00]} 3. Bb5 {[%clk 0:02:59.4]} 3... Nf6 {[%clk 0:03:00.3]} 4. d3
{[%clk 0:02:59.2]} 4... Bc5 {[%clk 0:03:00.1]} 5. Bxc6 {[%clk 0:02:57.4]} 5...
dxc6 {[%clk 0:03:00.3]} 6. Nbd2 {[%clk 0:02:57.5]} 6... Be6 {[%clk 0:02:59.5]}
7. O-O {[%clk 0:02:56.9]} 7... Nd7 {[%clk 0:02:47.8]} 8. Nb3 {[%clk 0:02:55.7]}
8... Bb6 {[%clk 0:02:47.1]} 9. Ng5 {[%clk 0:02:52.3]} 9... Nf8 {[%clk
0:02:47.4]} 10. Nxe6 {[%clk 0:02:44]} 10... Nxe6 {[%clk 0:02:48.3]} 11. Be3
{[%clk 0:02:44.5]} 11... Qe7 {[%clk 0:02:44.5]} 12. Qe2 {[%clk 0:02:40.5]} 12...
O-O-O {[%clk 0:02:26.2]} 13. a4 {[%clk 0:02:36.8]} 13... Bxe3 {[%clk 0:02:21.3]}
14. Qxe3 {[%clk 0:02:36.8]} 14... Kb8 {[%clk 0:02:21.3]} 15. a5 {[%clk
0:02:34.6]} 15... h5 {[%clk 0:02:18.1]} 16. a6 {[%clk 0:02:20.1]} 16... b6
{[%clk 0:02:18.1]} 17. Nd2 {[%clk 0:02:18.1]} 17... h4 {[%clk 0:02:07.7]} 18.
Nc4 {[%clk 0:02:17.3]} 18... Nf4 {[%clk 0:02:04.3]} 19. Kh1 {[%clk 0:02:06.2]}
19... Rh6 {[%clk 0:02:02.9]} 20. Rad1 {[%clk 0:01:52.6]} 20... c5 {[%clk
0:01:59.5]} 21. b4 {[%clk 0:01:36.7]} 21... cxb4 {[%clk 0:01:18.4]} 22. d4
{[%clk 0:01:36.9]} 22... Qg5 {[%clk 0:01:19]} 23. Rg1 {[%clk 0:01:35.2]} 23...
exd4 {[%clk 0:01:09.7]} 24. Rxd4 {[%clk 0:01:35.1]} 24... Rhh8 {[%clk
0:01:08.1]} 25. e5 {[%clk 0:01:07.5]} 25... Rxd4 {[%clk 0:00:54.4]} 26. Qxd4
{[%clk 0:01:05.6]} 26... Qf5 {[%clk 0:00:50.7]} 27. Rd1 {[%clk 0:00:44.2]} 27...
Rc8 {[%clk 0:00:41.8]} 28. Ne3 {[%clk 0:00:30.3]} 28... Qg5 {[%clk 0:00:30.9]}
29. Qe4 {[%clk 0:00:28.2]} 29... c6 {[%clk 0:00:30.2]} 30. Rd7 {[%clk
0:00:17.4]} 30... Nd5 {[%clk 0:00:22.4]} 31. Rb7+ {[%clk 0:00:11.9]} 31... Ka8
{[%clk 0:00:22.2]} 32. Rxf7 {[%clk 0:00:09.4]} 32... Re8 {[%clk 0:00:17.7]} 33.
h3 {[%clk 0:00:08.4]} 33... Kb8 {[%clk 0:00:15.4]} 34. e6 {[%clk 0:00:08]} 34...
Qh5 {[%clk 0:00:12.1]} 35. Nxd5 {[%clk 0:00:07.4]} 35... Qxd5 {[%clk 0:00:06.3]}
36. Qxd5 {[%clk 0:00:05.9]} 36... cxd5 {[%clk 0:00:06.9]} 37. Rxg7 {[%clk
0:00:06.3]} 37... Rxe6 {[%clk 0:00:06.8]} 38. Rb7+ {[%clk 0:00:06.4]} 38... Ka8
{[%clk 0:00:03.5]} 39. Rd7 {[%clk 0:00:06.6]} 39... Kb8 {[%clk 0:00:03.5]} 40.
Rxd5 {[%clk 0:00:06.9]} 40... Re2 {[%clk 0:00:03.7]} 41. Rd4 {[%clk 0:00:07.2]}
41... Rxf2 {[%clk 0:00:04]} 42. Rxb4 {[%clk 0:00:07.2]} 42... Rxc2 {[%clk
0:00:04.5]} 43. Rxh4 {[%clk 0:00:07.5]} 43... Ra2 {[%clk 0:00:03.4]} 44. Rh8+
{[%clk 0:00:07.9]} 44... Kc7 {[%clk 0:00:03.9]} 45. h4 {[%clk 0:00:08.8]} 45...
Rxa6 {[%clk 0:00:04]} 46. h5 {[%clk 0:00:09.7]} 46... Ra4 {[%clk 0:00:04.2]} 47.
Kh2 {[%clk 0:00:09.9]} 47... b5 {[%clk 0:00:04.1]} 48. Kh3 {[%clk 0:00:10.4]}
48... b4 {[%clk 0:00:03.6]} 49. h6 {[%clk 0:00:10.6]} 49... Ra6 {[%clk
0:00:02.5]} 50. g4 {[%clk 0:00:06.1]} 50... b3 {[%clk 0:00:02.5]} 51. Rh7+
{[%clk 0:00:06.6]} 51... Kb8 {[%clk 0:00:02.3]} 52. Rh8+ {[%clk 0:00:07]} 52...
Kb7 {[%clk 0:00:02.5]} 53. Rh7+ {[%clk 0:00:04.8]} 53... Kb6 {[%clk 0:00:02.6]}
54. Rh8 {[%clk 0:00:05.1]} 54... Ra1 {[%clk 0:00:02.7]} 55. Rb8+ {[%clk
0:00:05.1]} 55... Kc7 {[%clk 0:00:03.2]} 56. Rxb3 {[%clk 0:00:05.2]} 56... Rh1+
{[%clk 0:00:04]} 57. Kg3 {[%clk 0:00:05.8]} 57... Rxh6 {[%clk 0:00:04.9]} 58. g5
{[%clk 0:00:06.2]} 58... Rc6 {[%clk 0:00:03.5]} 59. Kg4 {[%clk 0:00:06.4]} 59...
a5 {[%clk 0:00:03.7]} 60. Kh5 {[%clk 0:00:06.3]} 60... Rc1 {[%clk 0:00:03.2]}
61. g6 {[%clk 0:00:06.3]} 61... Rh1+ {[%clk 0:00:02.9]} 62. Kg5 {[%clk
0:00:06.5]} 62... Kc6 {[%clk 0:00:03.6]} 63. Ra3 {[%clk 0:00:06.6]} 63... Kb5
{[%clk 0:00:03.6]} 64. Kf6 {[%clk 0:00:07.2]} 64... Rf1+ {[%clk 0:00:03.3]} 65.
Ke7 {[%clk 0:00:07]} 65... Rg1 {[%clk 0:00:03.7]} 66. Kf7 {[%clk 0:00:07.4]}
66... Rf1+ {[%clk 0:00:03.9]} 67. Ke7 {[%clk 0:00:07.2]} 67... Rg1 {[%clk
0:00:04]} 68. Kf7 {[%clk 0:00:07.5]} 68... Kb4 {[%clk 0:00:04.6]} 69. Ra2 {[%clk
0:00:07.2]} 69... a4 {[%clk 0:00:05]} 70. g7 {[%clk 0:00:07.5]} 70... Kb3 {[%clk
0:00:05]} 71. Rf2 {[%clk 0:00:07.4]} 71... a3 {[%clk 0:00:04.2]} 72. Rf3+ {[%clk
0:00:07.8]} 72... Kb2 {[%clk 0:00:04.5]} 73. Rf2+ {[%clk 0:00:08]} 73... Kb3
{[%clk 0:00:05.1]} 74. Rf3+ {[%clk 0:00:08.1]} 74... Kb2 {[%clk 0:00:05.7]} 75.
Rf2+ {[%clk 0:00:08.3]} 1-0

[Event "Early-Titled-Tuesday-Blitz-January-30-2024"]
[Site "Chess.com"]
[Date "2024.01.30"]
[Round "4"]
[White "Seochesspie"]
[Black "Vsevolod_Ovchinnikov"]
[Result "0-1"]
[WhiteElo "2863"]
[BlackElo "2630"]
[TimeControl "180+1"]
[EndTime "8:44:19 PST"]
[Termination "Vsevolod_Ovchinnikov won on time"]

1. c4 {[%clk 0:03:00.9]} 1... Nf6 {[%clk 0:02:59.4]} 2. Nc3 {[%clk 0:03:00]}
2... d5 {[%clk 0:03:00.1]} 3. cxd5 {[%clk 0:02:58.2]} 3... Nxd5 {[%clk 0:03:01]}
4. Nf3 {[%clk 0:02:52.7]} 4... g6 {[%clk 0:03:01.3]} 5. e4 {[%clk 0:02:49.6]}
5... Nb6 {[%clk 0:03:01.2]} 6. d4 {[%clk 0:02:47.1]} 6... Bg7 {[%clk 0:03:01.5]}
7. h3 {[%clk 0:02:44.4]} 7... Nc6 {[%clk 0:03:00.6]} 8. Be3 {[%clk 0:02:44.2]}
8... O-O {[%clk 0:02:59.4]} 9. Bb5 {[%clk 0:02:41.2]} 9... f5 {[%clk 0:02:54.7]}
10. exf5 {[%clk 0:02:41]} 10... Bxf5 {[%clk 0:02:54.3]} 11. O-O {[%clk
0:02:40.3]} 11... Kh8 {[%clk 0:02:51.6]} 12. Bxc6 {[%clk 0:02:39.5]} 12... bxc6
{[%clk 0:02:52.5]} 13. Ne5 {[%clk 0:02:36.9]} 13... c5 {[%clk 0:02:38.9]} 14.
Re1 {[%clk 0:02:33.6]} 14... Nd5 {[%clk 0:02:03.8]} 15. Nc6 {[%clk 0:02:22.6]}
15... Nxc3 {[%clk 0:02:01.2]} 16. bxc3 {[%clk 0:02:22.2]} 16... Qd6 {[%clk
0:01:47.1]} 17. d5 {[%clk 0:02:15.7]} 17... Bd7 {[%clk 0:01:32.2]} 18. Rc1
{[%clk 0:02:07]} 18... Bxc6 {[%clk 0:01:27.2]} 19. dxc6 {[%clk 0:02:07.1]} 19...
Qxc6 {[%clk 0:01:28.1]} 20. c4 {[%clk 0:01:58.9]} 20... Rad8 {[%clk 0:01:14.1]}
21. Qg4 {[%clk 0:01:58.8]} 21... Rf7 {[%clk 0:01:09]} 22. Qg5 {[%clk 0:01:57.5]}
22... Bd4 {[%clk 0:01:06.6]} 23. Bxd4+ {[%clk 0:01:54.7]} 23... cxd4 {[%clk
0:01:06.6]} 24. Rxe7 {[%clk 0:01:55.1]} 24... Rxe7 {[%clk 0:01:05.1]} 25. Qxe7
{[%clk 0:01:55.1]} 25... Qd6 {[%clk 0:01:05.3]} 26. Qxd6 {[%clk 0:01:52.1]}
26... Rxd6 {[%clk 0:01:06.2]} 27. c5 {[%clk 0:01:52.1]} 27... Rd5 {[%clk
0:00:57.5]} 28. Kf1 {[%clk 0:01:51.9]} 28... Kg7 {[%clk 0:00:56.5]} 29. Ke2
{[%clk 0:01:52]} 29... d3+ {[%clk 0:00:51.9]} 30. Kd2 {[%clk 0:01:52.2]} 30...
Kf6 {[%clk 0:00:52.6]} 31. Rc3 {[%clk 0:01:46.8]} 31... Ke5 {[%clk 0:00:42.5]}
32. Rxd3 {[%clk 0:01:46.6]} 32... Rxc5 {[%clk 0:00:42.3]} 33. Ra3 {[%clk
0:01:45]} 33... a5 {[%clk 0:00:41.2]} 34. Ke3 {[%clk 0:01:43.9]} 34... g5 {[%clk
0:00:39.2]} 35. g3 {[%clk 0:01:42.5]} 35... Rd5 {[%clk 0:00:26.5]} 36. Rc3
{[%clk 0:01:40]} 36... Kd6 {[%clk 0:00:25.2]} 37. Rc4 {[%clk 0:01:38.2]} 37...
Re5+ {[%clk 0:00:22.2]} 38. Kf3 {[%clk 0:01:37.5]} 38... Rf5+ {[%clk 0:00:20.6]}
39. Ke3 {[%clk 0:01:37.3]} 39... Re5+ {[%clk 0:00:20.8]} 40. Kd3 {[%clk
0:01:37.5]} 40... Rd5+ {[%clk 0:00:19.8]} 41. Kc3 {[%clk 0:01:19]} 41... Rf5
{[%clk 0:00:17.8]} 42. f4 {[%clk 0:01:17.9]} 42... gxf4 {[%clk 0:00:18]} 43.
gxf4 {[%clk 0:01:18.7]} 43... c5 {[%clk 0:00:16.9]} 44. Ra4 {[%clk 0:01:17.6]}
44... Kd5 {[%clk 0:00:15.2]} 45. Kd3 {[%clk 0:01:17.8]} 45... Rh5 {[%clk
0:00:14.3]} 46. Rxa5 {[%clk 0:01:16.8]} 46... Rxh3+ {[%clk 0:00:15]} 47. Ke2
{[%clk 0:01:17.2]} 47... Kd4 {[%clk 0:00:13.8]} 48. f5 {[%clk 0:01:16.4]} 48...
Rh5 {[%clk 0:00:13.4]} 49. f6 {[%clk 0:01:14.5]} 49... Re5+ {[%clk 0:00:13.7]}
50. Kd2 {[%clk 0:01:14]} 50... Rf5 {[%clk 0:00:14.4]} 51. Ra7 {[%clk 0:01:14.3]}
51... Rf2+ {[%clk 0:00:12.8]} 52. Kd1 {[%clk 0:01:11.5]} 52... Rxf6 {[%clk
0:00:13.4]} 53. Rxh7 {[%clk 0:01:11.8]} 53... Kc3 {[%clk 0:00:13.4]} 54. a4
{[%clk 0:01:05.1]} 54... Rf1+ {[%clk 0:00:10.7]} 55. Ke2 {[%clk 0:01:05.3]}
55... Ra1 {[%clk 0:00:11.4]} 56. Ra7 {[%clk 0:01:02.8]} 56... c4 {[%clk
0:00:10.5]} 57. a5 {[%clk 0:01:03.1]} 57... Kc2 {[%clk 0:00:08.9]} 58. a6 {[%clk
0:01:01.9]} 58... c3 {[%clk 0:00:09.6]} 59. Ra8 {[%clk 0:01:02.1]} 59... Kc1
{[%clk 0:00:08.4]} 60. a7 {[%clk 0:00:53.7]} 60... c2 {[%clk 0:00:08.7]} 61. Ke3
{[%clk 0:00:51.8]} 61... Ra3+ {[%clk 0:00:08.4]} 62. Ke2 {[%clk 0:00:52.2]}
62... Ra2 {[%clk 0:00:07.4]} 63. Ke3 {[%clk 0:00:48.1]} 63... Kd1 {[%clk
0:00:07.4]} 64. Rd8+ {[%clk 0:00:47.2]} 64... Ke1 {[%clk 0:00:07.6]} 65. Rc8
{[%clk 0:00:47.4]} 65... Ra3+ {[%clk 0:00:05.9]} 66. Kd4 {[%clk 0:00:39.9]}
66... Kd2 {[%clk 0:00:06.2]} 67. a8=Q {[%clk 0:00:40]} 67... Rxa8 {[%clk
0:00:05.9]} 68. Rxa8 {[%clk 0:00:40.9]} 68... c1=Q {[%clk 0:00:06.6]} 69. Rd8
{[%clk 0:00:35.2]} 69... Ke2 {[%clk 0:00:05.9]} 70. Re8+ {[%clk 0:00:35.1]}
70... Kf3 {[%clk 0:00:06.6]} 71. Re5 {[%clk 0:00:34.3]} 71... Qd2+ {[%clk
0:00:06.5]} 72. Kc4 {[%clk 0:00:34.4]} 72... Kf4 {[%clk 0:00:06.6]} 73. Rd5
{[%clk 0:00:34.7]} 73... Qc2+ {[%clk 0:00:06.6]} 74. Kd4 {[%clk 0:00:35.2]}
74... Qb3 {[%clk 0:00:06.3]} 75. Rc5 {[%clk 0:00:34.3]} 75... Qe3+ {[%clk
0:00:05.7]} 76. Kc4 {[%clk 0:00:34.2]} 76... Ke4 {[%clk 0:00:06.4]} 77. Rc6
{[%clk 0:00:32.8]} 77... Qd4+ {[%clk 0:00:05.5]} 78. Kb5 {[%clk 0:00:33.1]}
78... Kd5 {[%clk 0:00:06]} 79. Rb6 {[%clk 0:00:30.8]} 79... Qc4+ {[%clk
0:00:05.8]} 80. Ka5 {[%clk 0:00:31]} 80... Qa2+ {[%clk 0:00:05.3]} 81. Kb5
{[%clk 0:00:31.2]} 81... Qc2 {[%clk 0:00:04.1]} 82. Ka6 {[%clk 0:00:23.6]} 82...
Qc4+ {[%clk 0:00:03.3]} 83. Kb7 {[%clk 0:00:23.6]} 83... Qf4 {[%clk 0:00:02.9]}
84. Ka6 {[%clk 0:00:22.1]} 84... Qf8 {[%clk 0:00:02.8]} 85. Ka7 {[%clk
0:00:20.3]} 85... Kc5 {[%clk 0:00:02.8]} 86. Rb8 {[%clk 0:00:20.4]} 86... Qe7+
{[%clk 0:00:02.6]} 87. Rb7 {[%clk 0:00:20.6]} 87... Qd8 {[%clk 0:00:03.4]} 88.
Rb8 {[%clk 0:00:18.9]} 88... Qc7+ {[%clk 0:00:03.8]} 89. Rb7 {[%clk 0:00:18.8]}
89... Qa5+ {[%clk 0:00:04.4]} 90. Kb8 {[%clk 0:00:19.1]} 90... Kc6 {[%clk
0:00:05]} 91. Rf7 {[%clk 0:00:15.9]} 91... Qd8+ {[%clk 0:00:04.6]} 92. Ka7
{[%clk 0:00:15.6]} 92... Qd4+ {[%clk 0:00:04.8]} 93. Ka8 {[%clk 0:00:12.8]}
93... Qd5 {[%clk 0:00:04.3]} 94. Rb7 {[%clk 0:00:12.4]} 94... Qa5+ {[%clk
0:00:04.1]} 95. Kb8 {[%clk 0:00:12.6]} 95... Qa6 {[%clk 0:00:04.3]} 96. Rc7+
{[%clk 0:00:12.5]} 96... Kd6 {[%clk 0:00:04.8]} 97. Rd7+ {[%clk 0:00:11.7]}
97... Kc5 {[%clk 0:00:04.5]} 98. Rc7+ {[%clk 0:00:11.7]} 98... Kd5 {[%clk
0:00:04.7]} 99. Rd7+ {[%clk 0:00:11.4]} 99... Ke6 {[%clk 0:00:05.4]} 100. Rc7
{[%clk 0:00:09.7]} 100... Qa5 {[%clk 0:00:05.8]} 101. Rb7 {[%clk 0:00:09.7]}
101... Kd6 {[%clk 0:00:05.9]} 102. Rg7 {[%clk 0:00:07.7]} 102... Qd8+ {[%clk
0:00:05.8]} 103. Kb7 {[%clk 0:00:07.4]} 103... Qe8 {[%clk 0:00:05.6]} 104. Rc7
{[%clk 0:00:06.3]} 104... Qb5+ {[%clk 0:00:05.9]} 105. Kc8 {[%clk 0:00:06]}
105... Qe5 {[%clk 0:00:05.9]} 106. Rd7+ {[%clk 0:00:05.5]} 106... Kc6 {[%clk
0:00:06]} 107. Kd8 {[%clk 0:00:01.2]} 107... Qh8+ {[%clk 0:00:05.6]} 108. Ke7
{[%clk 0:00:01.1]} 108... Qg7+ {[%clk 0:00:06.4]} 0-1

[Event "Early-Titled-Tuesday-Blitz-January-30-2024"]
[Site "Chess.com"]
[Date "2024.01.30"]
[Round "5"]
[White "whiteglovethief"]
[Black "publicaccountcze"]
[Result "1-0"]
[WhiteElo "2499"]
[BlackElo "2297"]
[TimeControl "180+1"]
[EndTime "8:51:29 PST"]
[Termination "whiteglovethief won by resignation"]

1. d4 {[%clk 0:03:00.9]} 1... Nf6 {[%clk 0:02:52.9]} 2. c4 {[%clk 0:03:01.4]}
2... g6 {[%clk 0:02:52.4]} 3. Nc3 {[%clk 0:02:59.7]} 3... d5 {[%clk 0:02:53.1]}
4. cxd5 {[%clk 0:02:58.9]} 4... Nxd5 {[%clk 0:02:54]} 5. e4 {[%clk 0:02:58.8]}
5... Nxc3 {[%clk 0:02:54.7]} 6. bxc3 {[%clk 0:02:59.2]} 6... Bg7 {[%clk
0:02:54.3]} 7. Nf3 {[%clk 0:02:59.7]} 7... c5 {[%clk 0:02:54.9]} 8. Rb1 {[%clk
0:02:59.3]} 8... Nc6 {[%clk 0:02:55.5]} 9. d5 {[%clk 0:02:58.9]} 9... Bxc3+
{[%clk 0:02:44.9]} 10. Bd2 {[%clk 0:02:58.7]} 10... Bxd2+ {[%clk 0:02:44.2]} 11.
Qxd2 {[%clk 0:02:59]} 11... Ne5 {[%clk 0:02:43.6]} 12. Nxe5 {[%clk 0:02:57.9]}
1-0

[Event "Early-Titled-Tuesday-Blitz-January-30-2024"]
[Site "Chess.com"]
[Date "2024.01.30"]
[Round "5"]
[White "ContrVersia"]
[Black "ri4mi"]
[Result "1-0"]
[WhiteElo "2840"]
[BlackElo "2540"]
[TimeControl "180+1"]
[EndTime "8:52:22 PST"]
[Termination "ContrVersia won by checkmate"]

1. Nf3 {[%clk 0:03:00.9]} 1... d5 {[%clk 0:02:59.7]} 2. c4 {[%clk 0:03:01.4]}
2... c6 {[%clk 0:03:00.2]} 3. g3 {[%clk 0:03:01.3]} 3... e6 {[%clk 0:03:00.7]}
4. b3 {[%clk 0:03:01]} 4... f5 {[%clk 0:03:00.2]} 5. Bg2 {[%clk 0:03:00.6]} 5...
Nf6 {[%clk 0:03:00.8]} 6. O-O {[%clk 0:03:01]} 6... Bd6 {[%clk 0:03:01.4]} 7.
Bb2 {[%clk 0:03:01.4]} 7... O-O {[%clk 0:03:01.9]} 8. d3 {[%clk 0:03:00.7]} 8...
Nbd7 {[%clk 0:03:00.7]} 9. Nc3 {[%clk 0:03:01]} 9... e5 {[%clk 0:02:58.4]} 10.
cxd5 {[%clk 0:02:58.2]} 10... cxd5 {[%clk 0:02:59.3]} 11. Nb5 {[%clk 0:02:58.3]}
11... Bb8 {[%clk 0:02:58.9]} 12. Ba3 {[%clk 0:02:58.2]} 12... Re8 {[%clk
0:02:55.6]} 13. Nd6 {[%clk 0:02:56.6]} 13... Re6 {[%clk 0:02:54.7]} 14. Nxf5
{[%clk 0:02:53.8]} 14... Nf8 {[%clk 0:02:36.8]} 15. Rc1 {[%clk 0:02:46.7]} 15...
Bd7 {[%clk 0:02:23.5]} 16. Ng5 {[%clk 0:02:45.2]} 16... Ra6 {[%clk 0:02:23.4]}
17. Ne7+ {[%clk 0:02:44.1]} 17... Kh8 {[%clk 0:02:17.6]} 18. Nf7# {[%clk
0:02:43.9]} 1-0

[Event "Early-Titled-Tuesday-Blitz-January-30-2024"]
[Site "Chess.com"]
[Date "2024.01.30"]
[Round "5"]
[White "HansOnTwitch"]
[Black "Alexander_Donchenko"]
[Result "1-0"]
[WhiteElo "3210"]
[BlackElo "2946"]
[TimeControl "180+1"]
[EndTime "8:53:19 PST"]
[Termination "HansOnTwitch won by resignation"]

1. e4 {[%clk 0:02:53.5]} 1... c6 {[%clk 0:02:59.9]} 2. Nf3 {[%clk 0:02:52.7]}
2... d5 {[%clk 0:03:00.8]} 3. d3 {[%clk 0:02:53.3]} 3... dxe4 {[%clk 0:03:00.1]}
4. dxe4 {[%clk 0:02:53.8]} 4... Qxd1+ {[%clk 0:03:00.9]} 5. Kxd1 {[%clk
0:02:54.7]} 5... Nd7 {[%clk 0:03:01.3]} 6. a4 {[%clk 0:02:44.4]} 6... Nc5 {[%clk
0:02:55.5]} 7. Nc3 {[%clk 0:02:31.6]} 7... Bg4 {[%clk 0:02:54.5]} 8. Be2 {[%clk
0:02:26.9]} 8... Nf6 {[%clk 0:02:51.3]} 9. Nd2 {[%clk 0:02:22.6]} 9... O-O-O
{[%clk 0:02:41.4]} 10. Bxg4+ {[%clk 0:02:20.3]} 10... Nxg4 {[%clk 0:02:42.3]}
11. Ke2 {[%clk 0:02:20.7]} 11... e5 {[%clk 0:02:40.2]} 12. f3 {[%clk 0:02:16.3]}
12... Nf6 {[%clk 0:02:40]} 13. Nc4 {[%clk 0:02:16.6]} 13... Nfd7 {[%clk
0:02:38.3]} 14. Be3 {[%clk 0:02:14.1]} 14... f6 {[%clk 0:02:23.9]} 15. a5 {[%clk
0:02:04.4]} 15... Kb8 {[%clk 0:02:18]} 16. Rhd1 {[%clk 0:02:04]} 16... Be7
{[%clk 0:02:15.9]} 17. Nd6 {[%clk 0:02:02.1]} 17... Rhf8 {[%clk 0:02:10.1]} 18.
Nf5 {[%clk 0:01:59.9]} 18... Rf7 {[%clk 0:02:07.9]} 19. Nxe7 {[%clk 0:01:59.7]}
1-0